Cogmind - Beta 16.1 @@@ ROGUE MODE // 2026.02.21 @ 13:57:21 Player: Zish Result: Destroyed by 7V-FK0(R) with Subdweller Laser Performance ------------- Evolutions (0) 0 Regions Visited (2) 400 Robots Destroyed (31) 155 Value Destroyed (683) 683 Prototype IDs (2) 40 Alien Tech Used (0) 0 Bonus (0) 0 TOTAL SCORE: 1278 Bonus ------- None Cogmind --------- Core Integrity 0/250 Matter 276/300 Energy 100/100 System Corruption 0% Temperature Cool (6) Movement Core (400) Ox7 Location -10/Subcaves Parts ------- > --- POWER (1) -------- (None) > --- PROPULSION (2) --- (None) > --- UTILITY (2) ------ Large Storage Unit > --- WEAPON (2) ------- Assault Rifle > --- INVENTORY (15) --- Ion Engine Light Ion Engine Signal Interpreter Targeting Computer ECM Suite Hacking Suite Hacking Suite Assault Rifle Assault Rifle Grenade Launcher Grenade Launcher Peak State ------------ > --- POWER ------------ Ion Engine > --- PROPULSION ------- Light Treads Light Treads > --- UTILITY ---------- Large Storage Unit Backup Plating I > --- WEAPON ----------- Assault Rifle Assault Rifle > --- INVENTORY -------- Ion Engine Light Ion Engine Targeting Computer ECM Suite Hacking Suite Assault Rifle Assault Rifle Grenade Launcher [Rating: 8] Favorites ----------- Power Light Ion Engine Engine Light Ion Engine Propulsion Light Treads Treads Light Treads Utility Large Storage Unit Storage Large Storage Unit Protection Backup Plating I Weapon Assault Rifle Energy Gun Medium Laser Ballistic Gun Assault Rifle Launcher Grenade Launcher Build | -11 -10 -10 ------- Run | Yrd Mat Sub Slots Evolved . | . . . Power . | . . . Propulsion . | . . . Utility . | . . . Weapon . | . . . Parts Attached 14 | 7 7 . Power 3 | 1 2 . Engine 3 | 1 2 . Core . | . . . Reactor . | . . . Propulsion 2 | 2 . . Treads 2 | 2 . . Leg . | . . . Wheel . | . . . Hover . | . . . Flight . | . . . Utility 2 | 1 1 . Device . | . . . Storage 2 | 1 1 . Processor . | . . . Hackware . | . . . Protection . | . . . Artifact . | . . . Weapon 7 | 3 4 . Energy Gun 2 | 2 . . Energy Cannon . | . . . Ballistic Gun 3 | 1 2 . Ballistic Cannon . | . . . Launcher 2 | . 2 . Special Weapon . | . . . Impact Weapon . | . . . Slashing Weapon . | . . . Piercing Weapon . | . . . Special Melee Weapon . | . . . Unidentified Prototypes . | . . . Parts Lost 8 | . 4 4 Power 3 | . 2 1 Propulsion 2 | . 1 1 Utility 1 | . . 1 Weapon 2 | . 1 1 Highest Loss Streak 2 | . 2 2 To Critical Strikes . | . . . Average Backups 9 | 1 9 11 Power 1 | . 2 2 Propulsion . | . . . Utility 4 | . 4 5 Weapon 3 | . 3 4 Tool/Special . | . . . Unused Backups 9 | . . 9 Power 2 | . . 2 Propulsion . | . . . Utility 5 | . . 5 Weapon 2 | . . 2 Tool/Special . | . . . Average Slot Usage (%) 85 | . 89 73 Engine 13 | . 13 14 Treads 18 | . 21 10 Storage 14 | . 14 14 Protection 9 | . 10 6 Energy Gun 2 | . 3 . Ballistic Gun 25 | . 23 28 Peak Build Rating 8 | 6 8 7 Average Rating 6 | 5 7 6 On Entrance 4 | . 6 7 Avg Prop Armor Cover (%) . | . . . Naked Turns . | . . . Heaviest Build 30 | 14 30 28 Greatest Support 40 | 40 40 20 Greatest Overweight (x) 8 | 1 1 8 Average Overweight (x) . | . . 1 Largest Inventory Capacity 15 | 8 15 15 Average Capacity 14 | 7 14 15 Most Carried 13 | 3 13 11 Average Carried 9 | 1 9 11 Final Capacity 15 | 8 15 15 Final Carried 11 | 2 11 11 Class Distribution -------------------- 100% | Mutant Dominant Class ---------------- Mutant | -10/Materials Mutant | -10/Subcaves Resources | -11 -10 -10 ----------- Run | Yrd Mat Sub Matter Collected 769 | 228 475 66 Remotely . | . . . Salvage Created 917 | . 692 225 Parts 67 | . 53 14 Haulers Intercepted 1 | . 1 . Recyclers Shooed . | . . . Parts Field Recycled . | . . . Retrieved Matter . | . . . Parts Self-Destructed 9 | . . 9 Prevented . | . . . Parts Restored . | . . . Kills | -11 -10 -10 ------- Run | Yrd Mat Sub Combat Hostiles Destroyed 24 | . 21 3 Guns 19 | . 16 3 AOE 5 | . 5 . Classes Destroyed 10 | . 7 3 Worker 1 | . 1 . Builder 2 | . 2 . Tunneler 1 | . 1 . Hauler 1 | . 1 . Operator 2 | . 2 . Swarmer 12 | . 12 . Grunt 9 | . 9 . Sentry 1 | . . 1 Cobbler 1 | . . 1 Subdweller 2 | . . 2 Best Kill Streak 5 | . 5 1 Combat Bots Only 4 | . 4 1 Max Kills in Single Turn 3 | . 3 1 Gunslinging . | . . . Exploded 3 | . 3 . Melee . | . . . Uniques/NPCs Destroyed . | . . . Combat | -11 -10 -10 -------- Run | Yrd Mat Sub Hostile Shots Fired 148 | . 124 24 Missed 44 | . 38 6 Hits 104 | . 86 18 Projectile 104 | . 86 18 Critical Strikes 1 | . 1 . Part Disruptions 1 | . 1 . Damage Taken 1243 | . 902 341 Core 252 | . 105 147 Absorbed by Shields . | . . . Regen/Repaired (Parts) 86 | . 86 . Core Remaining (%) 100 | 100 . . Volleys Fired 86 | . 68 18 Largest 2 | . 2 2 Hottest 70 | . 70 40 Shots Fired 171 | . 136 35 Gun 168 | . 133 35 Cannon . | . . . Launcher 3 | . 3 . Special . | . . . Kinetic 141 | . 106 35 Thermal 27 | . 27 . Explosive 3 | . 3 . Electromagnetic . | . . . Robot Hit Streak 13 | . 11 13 Robot Miss Streak 5 | . 5 2 Penetration Max . | . . . Secondary Targets 1 | . 1 . Max Gunslinging Chain 1 | . 1 . Shots Hit Robots 108 | . 79 29 Core Hits 56 | . 45 11 Critical Kills . | . . . Critical Parts Destroyed 1 | . 1 . Critical Strikes 5 | . 5 . Burn 4 | . 4 . Destroy 1 | . 1 . Melee Attacks . | . . . Impact . | . . . Slashing . | . . . Piercing . | . . . Sneak Attacks . | . . . Combat Hostiles . | . . . Follow-up Attacks . | . . . Damage Inflicted 1661 | . 1377 284 Guns 1299 | . 1015 284 Cannons . | . . . Explosions 362 | . 362 . Melee . | . . . Ramming . | . . . Kinetic 1086 | . 802 284 Thermal 233 | . 233 . Explosive 228 | . 228 . Electromagnetic 114 | . 114 . Impact . | . . . Slashing . | . . . Piercing . | . . . Highest Corruption . | . . . Average Corruption . | . . . Corruption Purged . | . . . Corruption Blocked . | . . . Overload Shots . | . . . Overflow Damage . | . . . Projectiles . | . . . Explosions . | . . . Melee . | . . . Knockbacks . | . . . Impact . | . . . Kinetic . | . . . Secondary . | . . . Self-Inflicted Damage 108 | . 108 . Shots 4 | . 4 . Rammed . | . . . Targets Rammed . | . . . Kicked . | . . . Crushed . | . . . Highest Temperature 111 | . 111 . Average Temperature 38 | . 38 . Received Heat Transfer 285 | . 222 63 Siege Activations . | . . . Martial Activations . | . . . Shielding Activations . | . . . Robots Disrupted . | . . . Combat Hostiles . | . . . Robots Corrupted . | . . . Combat Hostiles . | . . . Parts Fried . | . . . Impact Corruptions . | . . . Robots Melted . | . . . Combat Hostiles . | . . . Parts Melted 1 | . 1 . Heat Transferred 975 | . 975 . Parts Sabotaged . | . . . Parts Stolen . | . . . Parts Stripped . | . . . Power Chain Reactions 2 | . 2 . Alert | -11 -10 -10 ------- Run | Yrd Mat Sub Maximum Alert Level 1 | . 1 . Low Security (%) 65 | 100 63 . Level 1 34 | . 36 . Level 2 . | . . . Level 3 . | . . . Level 4 . | . . . Level 5 . | . . . High Security . | . . . Max Security . | . . . Peak Influence 303 | . 303 . Initial . | . . . Average 136 | . 145 . Influence Increases 717 | . 697 20 Destroy 0b10 Robot/C 440 | . 420 20 Destroy 0b10 Robot/NC 35 | . 35 . Destroy Leader 72 | . 72 . Successful Hack 11 | . 11 . Disable Machine 120 | . 120 . Destroy Structure 9 | . 9 . Lose Combat Pursuer 30 | . 30 . Influence Decreases 717 | . 522 195 Entered New Map 85 | . . 85 Time Decay 592 | . 482 110 Lost Part 40 | . 40 . Squads Dispatched 3 | . 3 . Investigation 2 | . 2 . Extermination . | . . . Reinforcement 1 | . 1 . Assault . | . . . Garrison . | . . . Intercept . | . . . Searches Triggered . | . . . Construction Impeded . | . . . Haulers Reinforced . | . . . Active Scanning Responses . | . . . Cargo Convoy Interrupts . | . . . Stealth | -11 -10 -10 --------- Run | Yrd Mat Sub Distress Signals 2 | . 2 . Communications Jammed . | . . . Distress Signals . | . . . Times Spotted 40 | . 35 5 Peak Tracking Total 5 | . 5 2 Tactical Retreats 2 | . 2 . Traps | -11 -10 -10 ------- Run | Yrd Mat Sub Traps Triggered . | . . . Indirectly . | . . . Trap Hack Attempts . | . . . Triggered . | . . . Disarmed . | . . . Reprogrammed . | . . . Reused . | . . . Traps Extracted . | . . . Installed . | . . . Triggered . | . . . Machines | -11 -10 -10 ---------- Run | Yrd Mat Sub Machines Disabled 8 | . 8 . Max in Single Turn 4 | . 4 . Machines Repaired . | . . . Machines Dismantled . | . . . Machines Sabotaged . | . . . Overloaded Fab Kills . | . . . Hacking | -11 -10 -10 --------- Run | Yrd Mat Sub Machines Accessed 4 | . 4 . Terminals 2 | . 2 . Fabricators . | . . . Repair Stations 1 | . 1 . Recycling Units 1 | . 1 . Scanalyzers . | . . . Garrison Access . | . . . Total Hacks 11 | . 11 . Successful 6 | . 6 . Failed 5 | . 5 . Catastrophic 1 | . 1 . Database Lockouts . | . . . Manual . | . . . Terminals 6 | . 6 . Fabricators . | . . . Repair Stations 3 | . 3 . Recycling Units 2 | . 2 . Scanalyzers . | . . . Garrison Access . | . . . Terminal Hacks 2 | . 2 . Record 1 | . 1 . Prototype ID Bank 1 | . 1 . Fabricator Hacks . | . . . Repair Station Hacks 3 | . 3 . Scan Component 1 | . 1 . Repair 1 | . 1 . Refit 1 | . 1 . Recycling Unit Hacks 1 | . 1 . Report Inventory 1 | . 1 . Scanalyzer . | . . . Garrison Access Hacks . | . . . Unauthorized Hacks . | . . . Terminals . | . . . Fabricators . | . . . Repair Stations . | . . . Recycling Units . | . . . Scanalyzers . | . . . Garrison Access . | . . . Data Cores Recovered 1 | . 1 . Used 1 | . 1 . Hacking Detections 3 | . 3 . Full Trace Events 3 | . 3 . Feedback Events . | . . . Feedback Blocked . | . . . Robot Schematics Acquired . | . . . Robots Built . | . . . Authchips . | . . . Time . | . . . Total Robot Build Rating . | . . . Part Schematics Acquired . | . . . Parts Built . | . . . Authchips . | . . . Time . | . . . Total Part Build Rating . | . . . Part Studies Acquired . | . . . Parts Repaired 1 | . 1 . Time 26 | . 26 . Parts Recycled . | . . . Recycled Matter . | . . . Retrieved Matter . | . . . Retrieved Components . | . . . Parts Scanalyzed . | . . . Part Schematics Acquired . | . . . Parts Damaged . | . . . Bothacking | -11 -10 -10 ------------ Run | Yrd Mat Sub Used RIF Installer . | . . . Robots Hacked . | . . . Non-combat . | . . . Combat . | . . . Robot Hacks Applied . | . . . Relay Couplers Released . | . . . Fabnet Peak Effective % . | . . . Robots Rewired . | . . . Allies Hacked . | . . . Hacks Repelled . | . . . Allies | -11 -10 -10 -------- Run | Yrd Mat Sub Total Allies . | . . . Largest Group . | . . . Highest-Rated Group . | . . . Highest-Rated Ally . | . . . Total Orders . | . . . Ally Attacks . | . . . Total Damage . | . . . Kills . | . . . Allies Corrupted . | . . . Allies Melted . | . . . Intel | -11 -10 -10 ------- Run | Yrd Mat Sub Active Infowar (turns) . | . . . Robot Analysis Total . | . . . Derelict Logs Recovered 1 | . . 1 Drone Launches . | . . . Drone Recoveries . | . . . Exploration | -11 -10 -10 ------------- Run | Yrd Mat Sub Turns Passed 1968 | 91 1356 521 Spaces Moved 723 | 51 497 175 Core 26 | 3 . 23 Treads 697 | 48 497 152 Legs . | . . . Wheels . | . . . Hover . | . . . Flight . | . . . Fastest Speed 50 | 50 160 240 Average Speed 210 | 154 196 267 Slowest Speed 450 | 160 240 450 Overloaded Moves . | . . . Propulsion Burnouts . | . . . Robots Hopped . | . . . Potential Cave-ins . | . . . Cave-ins Triggered . | . . . Exploration Rate (%) 36 | 4 84 21 Regions Visited 2 Branch Regions 1 Pre-discovered Areas 1 | . . 1 Known Exits Taken . | . . . Unknown Exits Taken 2 | 1 1 . Scrap Searched . | . . . Spaces Dug . | . . . Terrain Destroyed 8 | . 8 . Melee . | . . . Projectile . | . . . AOE 8 | . 8 . Terrain Rammed . | . . . Walls Destroyed . | . . . Machines Disabled . | . . . Actions | -11 -10 -10 --------- Run | Yrd Mat Sub Total 998 | 61 744 193 Wait 150 | . 150 . Move 721 | 50 496 175 Hop . | . . . Pick Up 14 | 1 13 . Fast Attach 10 | 7 3 . Attach 7 | 1 6 . Detach 7 | 2 5 . Swap . | . . . Drop 3 | . 3 . Fire 86 | . 68 18 Melee . | . . . Ram . | . . . Kick . | . . . Crush . | . . . Escape Stasis . | . . . Rewire . | . . . Trap . | . . . Miscellaneous . | . . . Route ------- -11/Scrapyard -10/Materials (discovered 4 exits: [*Mat x2] / [*Min] / [*Sub]) -10/Subcaves History --------- Turn | Location | Event 8 | -11/Scrapyard | Discovered new exit (range 15) 92 | -11/Scrapyard | Entered Materials 311 | -10/Materials | Discovered new exit (range 9) 312 | -10/Materials | Build established: Mutant 409 | -10/Materials | Repaired Lgt. Treads 1128 | -10/Materials | Discovered new exit (range 15) 1420 | -10/Materials | Discovered new exit (range 10) 1429 | -10/Materials | Discovered new exit (range 9) 1448 | -10/Materials | Entered Subcaves 1672 | -10/Subcaves | Core integrity fell below 50% 1966 | -10/Subcaves | Core integrity fell below 20% 1969 | -10/Subcaves | Destroyed by 7V-FK0(R) with Subdweller Laser Last Messages --------------- 01572_ Subatomizers dissect the Sub. Monowheel. 01660_ NL-EL2(z): "She is not going to be happy we haven't found any suitable candidates yet." 01662_ Backup Plating I destroyed. 01672_ Y-45 Defender destroyed. 01685_ Lgt. Treads fries itself beyond repair. 01687_ Hvy. Assault Rifle fries itself beyond repair. 01688_ Lgt. Armor Plating fries itself beyond repair. 01690_ Lgt. Treads fries itself beyond repair. 01690_ 6W-2GZ(O) collects matter. 01703_ 6W-2GZ(O) cries out in pain. 01703_ 6W-2GZ(O) destroyed. 01848_ Lgt. Treads destroyed. 01855_ YY-GOI(R) destroyed. 01863_ Acquired 54 matter. 01963_ Lgt. Ion Engine destroyed. 01967_ Assault Rifle destroyed. Map ----- +----------------------------------------------------+ | ???????????????????????????????????????????? | | ???????????????????????????????????????????? | | ???????????????????????????????????????????? | | ???????????????????????????????????????????? | | ???????????????????????????????????????????? | | ???????????????????????????????????????????? | | ???????????????????????????????????????????? | | ???????????????????????????????????????????? | | ???????????????????????????????????????????? | | ???????????????????????????????????????????? | | ???????????????????????????????????????????? | | ???????????????????????????????????????????? | | ???????????????????????????????????????????? | | ???????????????????????????????????????????? | | ???????????????????????????????????????????? | | ???????????????????????????????????????????? | | ???????????????????????????????????????????? | | ???????????????###??#??????????????????????? | | ???????????????# ##""?????????????????????? | | ???????????????# """"????????????????????? | | ??????????????## """????????????????????? | | ??????????????#"""""""#????????????????????? | | ??????????????? """##???????????????????? | | ???????????????? """#???????????????????? | | ?????????????????# RR""##??????????????????? | | ??????????????????#@ #??????????????????? | | ?????????????????## ##?????????????????? | | ????????????????## #?????????????????? | | ???????????????## ###??????????##?###?? | | ???????????????# ##???????????# #? ### | | ???????????????# #?????????#### #? # | | ???????????????# ##??????#### #? # | | ???????????????### #??????## # ## # | | ?????????????????# #?????## # ## | | ?????????????????## #?##### ## | | ?????????????????# ### # | | ?????????????????## ## | | ???????????????#### ### ### | | ???????????????# ## #?## ##?## | | ??????????####?# ## ## #??# #???# | | ??????????#"[&##" #### ## ### #???? | | ????????????#[ /=* ##??? ##?# ##???? | | ????????????##"#" ##???## ##??# #????? | | ?????????????### #?????#####???## ##???? | | ??????????????# #?????????????# ##??? | | ??????????????### ??????## ???# #??? | | ????????????????## ##????## ## ##??? | | ?????????????????#####?????# ##### | | ??????????????????????????# | | ?????????????????????????# ### | +----------------------------------------------------+ Best States ------------- Heat Dissipation 25 Energy Generation 10 Energy Capacity 250 Matter Stores 300 Matter Capacity 300 Sight Range 16 Terrain Scan Density 10 Armor Coverage 80 Evasion (%) 40 Recoil Reduction 2 Item Schematics ----------------- None Robot Schematics ------------------ None Fabricated ------------ Nothing Repaired ---------- Lgt. Treads | 38% | -10/Materials Studied --------- None Alien Tech Used ----------------- None Achievements -------------- None Challenges ------------ None Game ------ Seed SalvageShockMagmablaster Manual? 0 Play Time 00:09:08 Cumulative 25.6 hours Start 2026.02.21 @ 13:48:52 End 2026.02.21 @ 13:57:21 Sessions 1 Manual Loads 0 Difficulty Rogue Special Mode None Game No. 69 Rogue 69 Adventurer 0 Explorer 0 Win Type - Total 0 Types 0/0/0/0/0/0/0/0/0/0 Lore% 17 Gallery% 25 Achievement% 20 Wizard Run 0 Options --------- Layout 1 ASCII 0 Keyboard 1 Movement Vi Keybinds 0 Fullscreen 1 Font 24/Smallcaps Map View 50x35 Zoom Use 0% Tactical HUD 1 Map Filters NONE Filters NONE Steam 1 RUN: fdb7e5d5-5962-4494-bcce-3fbfb6ddae57